Cogmind - Beta 13 @@@ ROGUE MODE // 2024.04.06 @ 13:16:18 Player: Orfs Result: Self-destructed Performance ------------- Evolutions (1) 500 Regions Visited (3) 600 Robots Destroyed (6) 30 Value Destroyed (145) 145 Prototype IDs (0) 0 Alien Tech Used (0) 0 Bonus (0) 0 TOTAL SCORE: 1275 Bonus ------- None Cogmind --------- Core Integrity 400/400 Matter 224/300 Energy 245/250 System Corruption 0% Temperature Cool (0) Movement Flying (37) Location -9/Materials Parts ------- > --- POWER (1) -------- Ion Engine > --- PROPULSION (3) --- Flight Unit Flight Unit > --- UTILITY (3) ------ Heat Sink ECM Suite > --- WEAPON (2) ------- (None) > --- INVENTORY (5) ---- Small Storage Unit Signal Interpreter Targeting Computer Grenade Launcher Proton Bomb Trap Peak State ------------ > --- POWER ------------ Light Ion Engine > --- PROPULSION ------- Light Treads Light Treads > --- UTILITY ---------- Medium Storage Unit Medium Storage Unit > --- WEAPON ----------- Assault Rifle Assault Rifle > --- INVENTORY -------- Ion Engine Light Treads Aluminum Leg Aluminum Leg Wheel Wheel Small Storage Unit High-capacity Matter Pod Signal Interpreter Grenade Launcher [Rating: 8] Favorites ----------- Power Light Ion Engine Engine Light Ion Engine Propulsion Light Treads Treads Light Treads Leg Aluminum Leg Flight Unit Flight Unit Utility Medium Storage Unit Device ECM Suite Storage Medium Storage Unit Weapon Assault Rifle Ballistic Gun Assault Rifle Launcher Grenade Launcher Build | -11 -10 -10 -9 ------- Run | Yrd Mat Min Mat Slots Evolved 2 | . . . 2 Power . | . . . . Propulsion 1 | . . . 1 Utility 1 | . . . 1 Weapon . | . . . . Parts Attached 12 | 2 6 3 1 Power 1 | . 1 . . Engine 1 | . 1 . . Core . | . . . . Reactor . | . . . . Propulsion 4 | 2 1 1 . Treads 2 | 2 . . . Leg . | . . . . Wheel . | . . . . Hover . | . . . . Flight 2 | . 1 1 . Utility 6 | . 4 1 1 Device 2 | . 1 1 . Storage 4 | . 3 . 1 Processor . | . . . . Hackware . | . . . . Protection . | . . . . Artifact . | . . . . Weapon 1 | . . 1 . Energy Gun . | . . . . Energy Cannon . | . . . . Ballistic Gun . | . . . . Ballistic Cannon . | . . . . Launcher 1 | . . 1 . Special Weapon . | . . . . Impact Weapon . | . . . . Slashing Weapon . | . . . . Piercing Weapon . | . . . . Special Melee Weapon . | . . . . Unidentified Prototypes . | . . . . Parts Lost . | . . . . Power . | . . . . Propulsion . | . . . . Utility . | . . . . Weapon . | . . . . Highest Loss Streak . | . . . . To Critical Strikes . | . . . . Average Slot Usage (%) 80 | . 86 63 62 Engine 13 | . 14 14 11 Treads 15 | . 21 . . Flight 9 | . 2 25 22 Device 8 | . 2 22 22 Storage 16 | . 22 . 7 Ballistic Gun 16 | . 22 . . Naked Turns . | . . . . Heaviest Build 29 | 12 29 8 13 Greatest Support 40 | 40 40 8 8 Greatest Overweight (x) 9 | . 9 1 1 Average Overweight (x) . | . . . . Largest Inventory Capacity 10 | 8 10 5 8 Average Capacity 7 | 8 8 5 6 Most Carried 10 | 6 10 5 5 Average Carried 6 | 6 7 4 4 Final Capacity 8 | 8 5 5 5 Final Carried 6 | 6 3 5 5 Class Distribution -------------------- 100% | Mutant Dominant Class ---------------- Mutant | -10/Materials Mutant | -10/Mines Mutant | -9/Materials Resources | -11 -10 -10 -9 ----------- Run | Yrd Mat Min Mat Matter Collected 326 | 183 68 75 . Remotely . | . . . . Salvage Created 146 | . 125 21 . Parts 10 | . 7 3 . Haulers Intercepted . | . . . . Recyclers Shooed . | . . . . Parts Field Recycled . | . . . . Retrieved Matter . | . . . . Parts Self-Destructed . | . . . . Prevented . | . . . . Kills | -11 -10 -10 -9 ------- Run | Yrd Mat Min Mat Combat Hostiles Destroyed 6 | . 3 3 . Guns 3 | . 3 . . AOE 3 | . . 3 . Classes Destroyed 2 | . 1 1 . Swarmer 3 | . . 3 . Grunt 3 | . 3 . . Best Kill Streak 3 | . 2 3 . Combat Bots Only 3 | . 2 3 . Max Kills in Single Turn 3 | . 1 3 . Gunslinging . | . . . . Exploded 3 | . . 3 . Melee . | . . . . Uniques/NPCs Destroyed . | . . . . Combat | -11 -10 -10 -9 -------- Run | Yrd Mat Min Mat Hostile Shots Fired 33 | . 27 6 . Missed 10 | . 8 2 . Damage Taken 263 | . 229 34 . Core 47 | . 22 25 . Absorbed by Shields . | . . . . Core Remaining (%) 90 | 100 . 81 . Volleys Fired 13 | . 12 1 . Largest 2 | . 2 1 . Hottest 40 | . 40 30 . Shots Fired 25 | . 24 1 . Gun 24 | . 24 . . Cannon . | . . . . Launcher 1 | . . 1 . Special . | . . . . Kinetic 24 | . 24 . . Thermal . | . . . . Explosive 1 | . . 1 . Electromagnetic . | . . . . Robot Hit Streak 3 | . 3 . . Robot Miss Streak 1 | . 1 1 . Penetration Max . | . . . . Secondary Targets . | . . . . Shots Hit Robots 14 | . 14 . . Core Hits 8 | . 6 2 . Critical Kills . | . . . . Critical Parts Destroyed . | . . . . Critical Strikes . | . . . . Melee Attacks . | . . . . Impact . | . . . . Slashing . | . . . . Piercing . | . . . . Sneak Attacks . | . . . . Combat Hostiles . | . . . . Follow-up Attacks . | . . . . Damage Inflicted 305 | . 165 140 . Guns 165 | . 165 . . Cannons . | . . . . Explosions 140 | . . 140 . Melee . | . . . . Ramming . | . . . . Kinetic 165 | . 165 . . Thermal . | . . . . Explosive 140 | . . 140 . Electromagnetic . | . . . . Impact . | . . . . Slashing . | . . . . Piercing . | . . . . Highest Corruption . | . . . . Average Corruption . | . . . . Corruption Purged . | . . . . Corruption Blocked . | . . . . Overload Shots . | . . . . Overflow Damage 8 | . . 8 . Projectiles . | . . . . Explosions 8 | . . 8 . Melee . | . . . . Knockbacks . | . . . . Impact . | . . . . Kinetic . | . . . . Secondary . | . . . . Self-Inflicted Damage . | . . . . Shots . | . . . . Rammed . | . . . . Targets Rammed . | . . . . Kicked . | . . . . Crushed . | . . . . Highest Temperature 2 | . 2 . . Average Temperature 2 | . 2 . . Received Heat Transfer 126 | . 126 . . Siege Activations . | . . . . Robots Corrupted . | . . . . Combat Hostiles . | . . . . Parts Fried . | . . . . Impact Corruptions . | . . . . Robots Melted . | . . . . Combat Hostiles . | . . . . Parts Melted . | . . . . Heat Transferred . | . . . . Parts Sabotaged . | . . . . Parts Stolen . | . . . . Parts Stripped . | . . . . Power Chain Reactions . | . . . . Alert | -11 -10 -10 -9 ------- Run | Yrd Mat Min Mat Peak Influence 117 | . 117 93 35 Initial 35 | . . . 35 Average 52 | . 46 87 35 Maximum Alert Level . | . . . . Low Security (%) 100 | 100 100 100 100 Level 1 . | . . . . Level 2 . | . . . . Level 3 . | . . . . Level 4 . | . . . . Level 5 . | . . . . High Security . | . . . . Max Security . | . . . . Squads Dispatched 1 | . 1 . . Investigation . | . . . . Extermination . | . . . . Reinforcement 1 | . 1 . . Assault . | . . . . Garrison . | . . . . Intercept . | . . . . Searches Triggered . | . . . . Construction Impeded . | . . . . Haulers Reinforced . | . . . . Active Scanning Responses . | . . . . Cargo Convoy Interrupts . | . . . . Stealth | -11 -10 -10 -9 --------- Run | Yrd Mat Min Mat Distress Signals . | . . . . Communications Jammed . | . . . . Distress Signals . | . . . . Times Spotted 9 | . 5 4 . Peak Tracking Total 3 | . 3 3 . Tactical Retreats . | . . . . Traps | -11 -10 -10 -9 ------- Run | Yrd Mat Min Mat Traps Triggered . | . . . . Indirectly . | . . . . Trap Hack Attempts . | . . . . Triggered . | . . . . Disarmed . | . . . . Reprogrammed . | . . . . Reused . | . . . . Traps Extracted . | . . . . Installed . | . . . . Triggered . | . . . . Most Traps Carried 1 | . . 1 1 Machines | -11 -10 -10 -9 ---------- Run | Yrd Mat Min Mat Machines Disabled . | . . . . Max in Single Turn . | . . . . Machines Repaired . | . . . . Machines Dismantled . | . . . . Machines Sabotaged . | . . . . Overloaded Fab Kills . | . . . . Hacking | -11 -10 -10 -9 --------- Run | Yrd Mat Min Mat Machines Accessed 2 | . 1 . 1 Terminals 2 | . 1 . 1 Fabricators . | . . . . Repair Stations . | . . . . Recycling Units . | . . . . Scanalyzers . | . . . . Garrison Access . | . . . . Total Hacks 6 | . 5 . 1 Successful 5 | . 4 . 1 Failed 1 | . 1 . . Catastrophic . | . . . . Database Lockouts . | . . . . Manual . | . . . . Terminals 6 | . 5 . 1 Fabricators . | . . . . Repair Stations . | . . . . Recycling Units . | . . . . Scanalyzers . | . . . . Garrison Access . | . . . . Terminal Hacks 5 | . 4 . 1 Record 3 | . 3 . . Emergency Access Points 1 | . 1 . . Terminal Index 1 | . . . 1 Fabricator Hacks . | . . . . Repair Station Hacks . | . . . . Recycling Unit Hacks . | . . . . Scanalyzer . | . . . . Garrison Access Hacks . | . . . . Unauthorized Hacks . | . . . . Terminals . | . . . . Fabricators . | . . . . Repair Stations . | . . . . Recycling Units . | . . . . Scanalyzers . | . . . . Garrison Access . | . . . . Data Cores Recovered . | . . . . Used . | . . . . Hacking Detections 1 | . 1 . . Full Trace Events 1 | . 1 . . Feedback Events . | . . . . Feedback Blocked . | . . . . Robot Schematics Acquired . | . . . . Robots Built . | . . . . Authchips . | . . . . Time . | . . . . Total Robot Build Rating . | . . . . Part Schematics Acquired . | . . . . Parts Built . | . . . . Authchips . | . . . . Time . | . . . . Total Part Build Rating . | . . . . Parts Repaired . | . . . . Time . | . . . . Parts Recycled . | . . . . Recycled Matter . | . . . . Retrieved Matter . | . . . . Retrieved Components . | . . . . Parts Scanalyzed . | . . . . Part Schematics Acquired . | . . . . Parts Damaged . | . . . . Bothacking | -11 -10 -10 -9 ------------ Run | Yrd Mat Min Mat Used RIF Installer . | . . . . Robots Hacked . | . . . . Non-combat . | . . . . Combat . | . . . . Robot Hacks Applied . | . . . . Relay Couplers Released . | . . . . Fabnet Peak Effective % . | . . . . Robots Rewired . | . . . . Allies Hacked . | . . . . Hacks Repelled . | . . . . Allies | -11 -10 -10 -9 -------- Run | Yrd Mat Min Mat Total Allies . | . . . . Largest Group . | . . . . Highest-Rated Group . | . . . . Highest-Rated Ally . | . . . . Total Orders . | . . . . Ally Attacks . | . . . . Total Damage . | . . . . Kills . | . . . . Allies Corrupted . | . . . . Allies Melted . | . . . . Intel | -11 -10 -10 -9 ------- Run | Yrd Mat Min Mat Robot Analysis Total . | . . . . Derelict Logs Recovered 2 | . . 2 . Drone Launches . | . . . . Drone Recoveries . | . . . . Exploration | -11 -10 -10 -9 ------------- Run | Yrd Mat Min Mat Turns Passed 596 | 35 403 129 29 Spaces Moved 584 | 26 228 300 30 Core 1 | . 1 . . Treads 169 | 6 163 . . Legs 20 | 20 . . . Wheels . | . . . . Hover . | . . . . Flight 394 | . 64 300 30 Fastest Speed 37 | 120 120 37 37 Average Speed 86 | 129 150 38 42 Slowest Speed 500 | 160 500 120 117 Overloaded Moves . | . . . . Propulsion Burnouts . | . . . . Robots Hopped 3 | . . 3 . Cave-ins Triggered . | . . . . Exploration Rate (%) 26 | 2 28 70 6 Regions Visited 3 Branch Regions 1 Pre-discovered Areas . | . . . . Known Exits Taken . | . . . . Unknown Exits Taken 3 | 1 1 1 . Scrap Searched . | . . . . Spaces Dug . | . . . . Terrain Destroyed 8 | . . 8 . Melee . | . . . . Projectile . | . . . . AOE 8 | . . 8 . Terrain Rammed . | . . . . Walls Destroyed . | . . . . Machines Disabled . | . . . . Actions | -11 -10 -10 -9 --------- Run | Yrd Mat Min Mat Total 650 | 27 269 308 46 Wait 21 | . 4 3 14 Move 577 | 25 227 295 30 Hop 1 | . . 1 . Pick Up 8 | . 5 3 . Fast Attach 6 | . 4 2 . Attach 2 | . . 1 1 Detach 2 | . . 1 1 Swap 4 | 2 2 . . Drop 16 | . 15 1 . Fire 13 | . 12 1 . Melee . | . . . . Ram . | . . . . Kick . | . . . . Crush . | . . . . Escape Stasis . | . . . . Rewire . | . . . . Trap . | . . . . Miscellaneous . | . . . . Route ------- -11/Scrapyard -10/Materials -10/Mines (discovered 3 exits: *Mat x2 / Sub) -9/Materials (discovered 4 exits: Min x2 / *Sto x2) History --------- Turn | Location | Event 1 | -11/Scrapyard | Discovered new exit (range 3) 36 | -11/Scrapyard | Entered Materials 307 | -10/Materials | Build established: Mutant 423 | -10/Materials | Discovered new exit (range 6) 439 | -10/Materials | Entered Mines 459 | -10/Mines | Met a Derelict bent on vengeance 468 | -10/Mines | Joined a pair of Derelicts in attacking an 0b10 outpost 472 | -10/Mines | Discovered new exit (range 5) 493 | -10/Mines | Identified exit to Subcaves 519 | -10/Mines | Found a hidden stash of uninstalled traps 539 | -10/Mines | Learned 8 Materials zone layouts 565 | -10/Mines | Discovered new exit (range 4) 568 | -10/Mines | Entered Materials 568 | -9/Materials | Evolved 2 slots: Propulsion x1, Utility x1 569 | -9/Materials | Identified exit to Mines 569 | -9/Materials | Identified exit to Storage 583 | -9/Materials | Discovered exit to Storage (range 7) 597 | -9/Materials | Self-destructed Last Messages --------------- Data stored: Materials zone layouts (x8). 00565_ EXIT=FOUND PARAMETERS=PROPULSION+1,UTILITY+1 Evolving occurs each time the central map of a new depth is reached, but not in branch areas. Your world map route is accessible via Backspace, or the MAP button in the bottom-right corner. LOCATION=UNKNOWN GOAL=ESCAPE Loading 8 Materials zones... Remember there are three different ways to zoom the map: Scroll the mouse wheel while panning the map with Shift, or toggle via 'z' or the ZOOM button over the map. 00583_ EXIT=FOUND: STORAGE 00596_ Connecting with Terminal... 00596_ Current location identified: Materials >>Index(Terminals) Found 12 terminals. Downloaded coordinate data. 00596_ K-01 Serf collects debris. Map ----- +----------------------------------------------------+ | | | | | | | | | | | | | | | ????????????????????????????????????#############? | | ????????????????????????????????????# #? | | ????????????????????????????????????# #? | | ????????????????????????????????????# """ """ #? | | ????????????????????????????????????# """ """ #? | | ????????????????????????????????????# """ """ #? | | ????????????????????????????????????# """ """ #? | | ??????????????????????????########### #? | | ??????????????????????????# #+#+#########? | | ??##########???????######## """ + #??????? | | ??# #???????# !!! # "T" # #??????? | | ### ! #???????# !!! # """ # ####??????? | | ## #???????# !! # """ # #?????????? | | ## """ #???????# # """ # ########??? | | ## """"" #???????# ] = # + # #??? | | ## """"" #???????# # # # #??? | | ## """"" #???????####+########+#### # #??? | | ## """ ########### ###### # #??? | | ## + T @ u + #??? | | ###+################ ###### k # #??? | | #?????????#### ####### ####+###### | | #?????????# ## ### ## | | #?????????# ## # "" | | #### ###?????????# ## + "" | | ###??# #???????????# ## "T" # "" | | ?????# #???????????# ########+###### # | | ?????# #???????????##### ## #?# # "" | | ?????# #???????????????# ## """ """ #?# # "" | | ?????# #???????????????# ## """ """ #?# # "" | | ?????# #???????????????# ## """ """ #?# # | | # #### #????????########+## ## #?# ##### | | #????????# # ## #?# #???? | | ########?# """ # ## "Y" #?# #???? | | # #?# """ # ## """ ###+####? | | ### # #?# """ # ############ #? | | +### # #?# """ # #??????????# """ #? | | # # #?# "" + #??????????# """ #? | | # # #?# S"" # #??????????# """ #? | | " + + #?# "" # #??????????# #? | | " # ###+####?########### ##?????????# #? | | " # ### #######??###### #?????????########? | | # #### ### #?????????????????? | | #### ## > #?????????????????? | +----------------------------------------------------+ Best States ------------- Heat Dissipation 38 Energy Generation 10 Energy Capacity 250 Matter Stores 283 Matter Capacity 300 Sight Range 16 Terrain Scan Density 10 ECM Strength 1 Evasion (%) 62 Recoil Reduction 2 Item Schematics ----------------- None Robot Schematics ------------------ None Fabricated ------------ Nothing Alien Tech Used ----------------- None Achievements -------------- Cya! Challenges ------------ None Game ------ Seed MissileCentriumGreatsword Manual? 0 Play Time 00:13:42 Cumulative 11.5 hours Start 2024.04.06 @ 13:02:02 End 2024.04.06 @ 13:16:18 Sessions 1 Manual Loads 0 Difficulty Rogue Special Mode None Game No. 30 Rogue 30 Adventurer 0 Explorer 0 Win Type - Total 0 Types 0/0/0/0/0/0/0/0/0 Lore% 17 Gallery% 24 Achievement% 18 Wizard Run 0 Options --------- Layout 1 ASCII 0 Keyboard 0 Movement Numpad Keybinds 0 Fullscreen 2 Font 20/SmallcapsGlow Map View 64x42 Zoom Use 0% Tactical HUD 1 Map Filters NONE Filters NONE Steam 1 RUN: eb194d9c-843e-41b3-8460-1f328c513cec